bitfinex/quotes_ETHUSD_20230111
["timestamp","ask_amount","ask_price","bid_price","bid_amount"]
[1673456252623,5.65456397,1326.7,1326.6,2.96683358]
[1673456252794,5.65456089,1326.7,1326.6,2.96683358]
[1673456253009,3.95869171,1326.7,1326.6,2.96683358]
[1673456253217,5.65255954,1326.7,1326.6,2.96683358]
[1673456253419,5.6545495,1326.7,1326.6,2.96683358]
[1673456254200,5.65456713,1326.7,1326.6,2.96683358]
[1673456254427,7.91430759,1326.7,1326.6,1.0965619]
[1673456254622,5.65456713,1326.7,1326.6,1.0965619]
[1673456254782,7.91430759,1326.7,1326.6,1.0965619]
[1673456255550,5.65456713,1326.7,1326.6,1.0965619]
[1673456255890,7.91430759,1326.7,1326.6,1.0965619]
[1673456257574,22.98928759,1326.7,1326.6,1.0965619]
[1673456258056,21.29341217,1326.7,1326.6,1.0965619]
[1673456259116,22.98921962,1326.7,1326.6,1.0965619]
[1673456259327,21.29341217,1326.7,1326.6,1.0965619]
[1673456259523,22.98920125,1326.7,1326.6,1.0965619]
[1673456259729,21.29341217,1326.7,1326.6,1.0965619]
[1673456259942,21.85990674,1326.7,1326.6,2.96679248]
[1673456260249,24.68484993,1326.7,1326.6,1.0965619]
[1673456261614,24.68488952,1326.7,1326.6,1.0965619]
[1673456261829,22.98909183,1326.7,1326.6,1.0965619]
[1673456263605,32.22229289,1326.7,1326.6,1.0965619]
[1673456264180,30.52658183,1326.7,1326.6,1.0965619]
[1673456264356,22.98909183,1326.7,1326.6,1.09297678]
[1673456265818,29.97415792,1326.7,1326.6,1.09297678]
[1673456266023,37.51164792,1326.7,1326.6,1.09297678]
[1673456266260,27.14934062,1326.7,1326.6,1.09297678]
[1673456267012,34.68683062,1326.7,1326.6,1.09297678]
[1673456267219,37.51164792,1326.7,1326.6,1.09297678]
[1673456268488,37.51164792,1326.7,1326.6,1.09297678]
[1673456269749,35.25190746,1326.7,1326.6,1.09297678]
[1673456269963,35.25390746,1326.7,1326.6,1.09297678]
[1673456270120,35.25190746,1326.7,1326.6,1.09297678]
[1673456270853,27.71441746,1326.7,1326.6,1.09297678]
[1673456271385,35.25190746,1326.7,1326.6,1.09297678]
[1673456272368,37.5114084,1326.7,1326.6,1.09297678]
[1673456272588,38.0768084,1326.7,1326.6,1.09297678]
[1673456272785,35.81730746,1326.7,1326.6,1.09297678]
[1673456273323,36.95490746,1326.7,1326.6,1.09297678]
[1673456274128,34.13009016,1326.7,1326.6,1.09297678]
[1673456274351,43.17523835,1326.7,1326.3,0.099]
[1673456274587,25.44103168,1326.4,1326.2,20.099]
[1673456274793,1.709,1326.3,1326.2,20.099]
[1673456275006,4.209,1326.3,1326.2,20.099]
[1673456275163,27.9577669,1326.3,1326.2,20.099]
[1673456275375,27.9597669,1326.3,1326.2,0.099]
[1673456275586,30.78303227,1326.3,1326.0,8.34662778]
[1673456275948,16.79336911,1326.2,1326.0,0.18252778]
[1673456276106,17.92489755,1326.2,1326.0,0.08352778]
[1673456276321,2.5,1326.1,1326.0,0.08352778]
[1673456276550,25.52968755,1326.2,1326.1,0.6183212]
[1673456276760,27.17068755,1326.2,1326.1,0.6183212]
[1673456276945,33.77469502,1326.2,1326.1,0.6183212]
[1673456277175,9.44371502,1326.2,1326.1,0.6183212]
[1673456277432,1.71017911,1326.2,1326.1,0.6183212]
[1673456277601,1.70817911,1326.2,1326.1,0.6183212]
[1673456277809,0.00317911,1326.2,1326.1,0.6183212]
[1673456281919,0.00317911,1326.2,1326.0,7.64027]
[1673456282581,19.52898,1326.3,1326.0,7.64027]
[1673456282748,27.06903,1326.3,1326.0,0.099]
[1673456283117,34.60927,1326.3,1325.9,20.18910919]
[1673456283422,34.60927,1326.3,1325.9,26.79314723]
[1673456283617,34.60927,1326.3,1325.9,31.41316773]
[1673456283804,34.60927,1326.3,1325.9,38.95519773]
[1673456284010,34.60927,1326.3,1325.9,34.33517723]
[1673456284637,34.60927,1326.3,1325.9,41.87721723]
[1673456284853,34.60927,1326.3,1325.9,39.07083983]
[1673456286016,34.61244911,1326.3,1325.9,20.18910919]
[1673456286228,1.709,1326.2,1325.9,20.18910919]
[1673456286423,30.1636,1326.1,1325.9,20.18910919]
[1673456286634,30.16877911,1326.1,1325.9,20.18910919]
[1673456287315,31.86477911,1326.1,1325.9,20.18910919]
[1673456287846,24.32387911,1326.1,1325.9,20.18910919]
[1673456290429,23.57387911,1326.1,1325.9,20.18910919]
[1673456293251,28.04869746,1326.1,1325.9,20.18910919]
[1673456293787,4.209,1326.0,1325.9,20.18910919]
[1673456293989,26.83341,1326.0,1325.9,20.18910919]
[1673456294215,26.83541,1326.0,1325.9,20.18910919]
[1673456295368,19.29394,1326.0,1325.9,20.18910919]
[1673456295582,26.83541,1326.0,1325.9,20.18910919]
[1673456297609,30.5392879,1326.0,1325.9,20.18910919]
[1673456298503,30.5392879,1326.0,1325.9,0.18910919]
[1673456298716,30.5372879,1326.0,1325.9,0.09010919]
[1673456299777,32.2462879,1326.0,1325.9,0.09010919]
[1673456301988,32.8119879,1326.0,1325.9,0.09010919]
[1673456303780,36.35633741,1326.0,1325.9,0.09010919]
[1673456304303,32.8119879,1326.0,1325.9,0.09010919]
[1673456304528,36.35635141,1326.0,1325.9,0.09010919]
[1673456309484,27.39911,1326.0,1325.9,0.09010919]
[1673456311931,27.39911,1326.0,1325.9,0.08630649]
[1673456312357,24.89911,1326.0,1325.9,0.08630649]
[1673456312786,27.16993844,1326.0,1325.9,0.08630649]
[1673456313356,29.42966227,1326.0,1325.9,0.08630649]
[1673456313721,35.47681423,1326.0,1325.9,0.08630649]
[1673456314304,34.34728579,1326.0,1325.9,0.08630649]
[1673456315139,37.89173981,1326.0,1325.9,0.08630649]
[1673456317064,40.15043825,1326.0,1325.9,0.08630649]
[1673456318436,38.45641442,1326.0,1325.9,0.08630649]
[1673456318812,46.78644811,1326.0,1325.9,0.08630649]
[1673456319026,45.27925107,1326.0,1325.9,0.08630649]
[1673456319231,57.56284651,1326.0,1325.9,0.00030649]
[1673456319691,65.69134651,1326.0,1325.9,0.00030649]
[1673456319865,66.65211222,1326.0,1325.9,0.00030649]
[1673456320077,63.1034329,1326.0,1325.9,0.00030649]
[1673456320286,63.07769137,1326.0,1325.9,0.00030649]
[1673456321125,65.89603717,1326.0,1325.9,0.00030649]
[1673456322710,63.07769137,1326.0,1325.9,0.00030649]
[1673456322914,67.21743361,1326.0,1325.9,0.00030649]
[1673456323380,95.14073352,1326.0,1325.8,4.27e-06]
[1673456323701,54.09121493,1325.9,1325.8,4.27e-06]
[1673456323910,73.30925044,1325.9,1325.8,4.27e-06]
[1673456324224,75.02151755,1325.9,1325.8,4.27e-06]
[1673456324386,75.0215635,1325.9,1325.8,4.27e-06]
[1673456324596,75.02154097,1325.9,1325.8,4.27e-06]
[1673456324844,72.20219868,1325.9,1325.8,4.27e-06]
[1673456325041,75.02155851,1325.9,1325.8,4.27e-06]
[1673456325608,72.20219868,1325.9,1325.8,4.27e-06]
[1673456325749,75.7475788,1325.9,1325.8,4.27e-06]
[1673456327087,75.75075791,1325.9,1325.8,4.27e-06]
[1673456327403,78.56997539,1325.9,1325.8,4.27e-06]
[1673456327967,75.75075791,1325.9,1325.8,4.27e-06]
[1673456328169,85.25951667,1325.9,1325.8,4.27e-06]
[1673456328416,88.64775751,1325.9,1325.8,4.27e-06]
[1673456328905,79.13899875,1325.9,1325.8,4.27e-06]
[1673456329637,88.64778206,1325.9,1325.8,4.27e-06]
[1673456330089,0.002,1325.7,1325.6,5.4e-07]
[1673456330285,0.002,1325.7,1325.4,0.11042143]
[1673456330286,29.82358635,1325.7,1325.4,0.11042143]
[1673456330494,4.54173039,1325.5,1325.4,0.11042143]
[1673456330688,34.71901039,1325.5,1325.4,0.11042143]
[1673456330905,38.2647598,1325.5,1325.4,0.11042143]
[1673456331680,36.5557598,1325.5,1325.4,0.11042143]
[1673456333904,38.2537598,1325.5,1325.4,0.11042143]
[1673456334225,50.96137414,1325.5,1325.4,0.11042143]
[1673456334396,53.21690164,1325.5,1325.4,1.43e-06]
[1673456334610,58.50569414,1325.5,1325.4,1.43e-06]
[1673456334809,60.76122164,1325.5,1325.4,1.43e-06]
[1673456335020,58.50569414,1325.5,1325.4,1.43e-06]
[1673456335230,59.63291202,1325.5,1325.4,1.43e-06]
[1673456335862,56.08716261,1325.5,1325.4,1.43e-06]
[1673456336275,58.50605703,1325.5,1325.4,1.43e-06]
[1673456336647,64.15779952,1325.5,1325.4,1.43e-06]
[1673456336965,64.55570462,1325.5,1325.4,1.43e-06]
[1673456337133,66.99635275,1325.5,1325.4,1.43e-06]
[1673456337659,64.74082525,1325.5,1325.4,1.43e-06]
[1673456337866,66.99635275,1325.5,1325.4,1.43e-06]
[1673456338074,67.01620602,1325.5,1325.4,1.43e-06]
[1673456338288,67.24620602,1325.5,1325.4,1.43e-06]
[1673456339108,68.93463865,1325.5,1325.4,1.43e-06]
[1673456339363,2.5,1325.4,1325.2,1.25e-06]
[1673456339585,29.84804064,1325.3,1325.1,1.78e-06]
[1673456339777,32.85375064,1325.2,1325.1,1.78e-06]
[1673456340632,45.22705064,1325.2,1325.1,1.78e-06]
[1673456341006,47.1041533,1325.2,1325.1,1.78e-06]
[1673456341216,53.31755518,1325.2,1325.1,1.78e-06]
[1673456341477,62.30573001,1325.2,1325.1,1.78e-06]
[1673456342278,63.99413189,1325.2,1325.1,1.78e-06]
[1673456342717,68.4550905,1325.2,1325.1,1.78e-06]
[1673456342946,76.2888905,1325.2,1325.1,1.78e-06]
[1673456343114,76.29206961,1325.2,1325.1,1.78e-06]
[1673456343449,77.645461,1325.2,1325.1,1.78e-06]
[1673456343692,75.3899335,1325.2,1325.1,1.78e-06]
[1673456344258,83.3259335,1325.2,1325.1,1.78e-06]
[1673456344468,12.461,1325.0,1324.7,0.12441976]
[1673456344681,26.0589,1324.8,1324.7,0.12441976]
[1673456345018,32.85656064,1324.8,1324.7,0.12441976]
[1673456345451,32.85656064,1324.8,1324.7,9.76e-06]
[1673456345664,37.38156064,1324.8,1324.7,9.76e-06]
[1673456345977,31.14756064,1324.8,1324.7,9.76e-06]
[1673456346575,30.02375353,1324.8,1324.7,9.76e-06]
[1673456347236,22.6449,1324.8,1324.7,9.76e-06]
[1673456347658,15.10559758,1324.9,1324.8,1.99775483]
[1673456347659,34.20172911,1324.9,1324.8,1.99775483]
[1673456347886,15.09581,1324.9,1324.8,1.99775483]
[1673456348099,10.066,1325.0,1324.8,2.19753129]
[1673456348100,0.066,1325.0,1324.8,2.19753129]
[1673456348420,15.09461,1325.0,1324.8,2.19753129]
[1673456348572,7.54716,1325.0,1324.8,2.19753129]
[1673456349304,0.066,1325.1,1324.8,3.91253129]
[1673456349513,3.0,1325.1,1324.8,3.91253129]
[1673456349721,18.09349,1325.1,1324.8,3.91253129]
[1673456350407,3.61319855,1325.2,1324.9,1.715]
[1673456350615,50.61009,1325.3,1324.9,1.715]
[1673456350927,50.61009,1325.3,1324.9,9.26273]
[1673456350928,7.54607,1325.2,1324.9,9.26273]
[1673456351140,27.45585,1325.3,1324.9,29.36173]
[1673456351298,27.38985,1325.3,1324.9,29.36173]
[1673456351506,27.38985,1325.3,1324.9,36.90946]
[1673456351715,34.93561,1325.3,1324.9,21.814]
[1673456352182,22.6398,1325.1,1324.9,21.814]
[1673456352393,22.6398,1325.1,1324.9,20.099]
[1673456353224,15.0932,1325.1,1324.9,20.099]
[1673456353866,7.5466,1325.1,1324.9,20.099]
[1673456354074,0.06917911,1325.2,1324.9,27.64667]
[1673456354272,15.09555911,1325.2,1324.9,20.099]
[1673456354496,22.64200911,1325.2,1324.9,20.099]
[1673456356211,22.64200911,1325.2,1324.9,21.814]
[1673456356738,19.9101,1325.3,1324.9,29.3616]
[1673456356950,7.5461,1325.2,1324.9,36.90933]
[1673456357466,15.0922,1325.2,1324.9,29.3616]
[1673456358415,22.6383,1325.2,1324.9,21.814]
[1673456358835,15.0942,1325.2,1324.9,21.811]
[1673456359155,7.5461,1325.2,1324.9,29.3616]
[1673456359379,22.63816,1325.2,1324.9,21.814]
[1673456359674,15.09206,1325.2,1324.9,21.814]
[1673456359844,22.63809,1325.2,1324.9,21.814]
[1673456360514,22.63809,1325.2,1324.9,20.099]
[1673456361727,15.09206,1325.2,1324.9,20.099]
[1673456361938,7.54603,1325.2,1324.9,27.6467]
[1673456362400,22.63809,1325.2,1324.9,20.099]
[1673456364616,23.20419,1325.2,1324.9,20.099]
[1673456365878,8.11213,1325.2,1324.9,27.64673]
[1673456366055,0.5661,1325.2,1324.9,35.19446]
[1673456366880,8.11238,1325.2,1324.9,27.64673]
[1673456367089,0.5661,1325.2,1324.9,30.45535153]
[1673456367346,15.65829,1325.2,1324.9,22.90762153]
[1673456367561,23.20445,1325.2,1324.9,22.90762153]
[1673456367715,0.5661,1325.2,1324.9,38.00308153]
[1673456367926,0.5661,1325.2,1324.9,45.54735618]
[1673456368141,8.11221,1325.2,1324.9,27.64527465]
[1673456368396,8.11421,1325.2,1324.9,30.45388666]
[1673456368560,8.11421,1325.2,1324.9,38.00161666]
[1673456369191,8.11421,1325.2,1324.9,31.57858524]
[1673456369399,7.54811,1325.2,1324.9,31.57858524]
[1673456369666,0.002,1325.2,1324.9,46.67404524]
[1673456369894,7.54607,1325.2,1324.9,36.31770323]
[1673456370184,7.54807,1325.2,1324.9,39.12624764]
[1673456370360,0.002,1325.2,1325.0,1.87231685]
[1673456370573,0.002,1325.3,1325.1,1.365]
[1673456370798,7.54517,1325.4,1325.2,0.002]
[1673456371008,7.54717,1325.4,1325.2,0.002]
[1673456371236,10.04717,1325.4,1325.2,0.002]
[1673456371510,25.13743,1325.4,1325.2,0.002]
[1673456371684,31.81863381,1325.4,1325.2,0.002]
[1673456372199,17.59092,1325.3,1325.2,0.002]
[1673456372364,17.59292,1325.3,1325.2,0.002]
[1673456372779,17.59492,1325.3,1325.2,0.002]
[1673456373035,17.59292,1325.3,1325.2,0.002]
[1673456373831,7.54746,1325.3,1325.2,0.002]
[1673456374185,0.002,1325.3,1325.2,0.002]
[1673456374361,7.54546,1325.3,1325.2,0.002]
[1673456374564,10.04746,1325.3,1325.2,0.002]
[1673456375348,7.54746,1325.3,1325.2,0.002]
[1673456375561,0.002,1325.3,1325.2,0.002]
[1673456375728,17.5924,1325.4,1325.2,0.002]
[1673456375942,25.13766,1325.4,1325.2,0.002]
[1673456376566,17.59092,1325.3,1325.2,0.002]
[1673456376775,17.59292,1325.3,1325.2,0.002]
[1673456378462,10.04746,1325.3,1325.2,0.002]
[1673456378910,17.59292,1325.3,1325.2,0.002]
[1673456380026,2.502,1325.3,1325.2,0.002]
[1673456380216,17.6564,1325.4,1325.2,0.002]
[1673456380409,2.502,1325.4,1325.2,15.09406]
[1673456380605,2.5,1325.4,1325.2,22.73763465]
[1673456380820,20.0848,1325.5,1325.2,22.73763465]
[1673456381042,20.0208,1325.5,1325.2,22.73763465]
[1673456381692,20.0208,1325.5,1325.2,15.19160465]
[1673456381901,20.0208,1325.5,1325.2,0.09954465]
[1673456382110,37.48695686,1325.5,1325.2,0.002]
[1673456382321,2.5,1325.4,1325.2,0.002]
[1673456382779,7.54501,1325.4,1325.2,0.002]
[1673456382973,17.59202,1325.4,1325.2,0.002]
[1673456383446,25.13703,1325.4,1325.2,0.002]
[1673456383909,2.5,1325.3,1325.2,0.002]
[1673456384091,10.04546,1325.3,1325.2,0.002]
[1673456384302,10.04746,1325.3,1325.2,0.002]
[1673456386759,8.92415545,1325.3,1325.2,0.002]
[1673456393722,10.0479361,1325.3,1325.2,0.002]
[1673456393910,27.32311781,1325.3,1325.2,0.002]
[1673456394623,27.88911781,1325.3,1325.2,0.002]
[1673456397187,29.57478878,1325.3,1325.2,0.002]
[1673456398232,29.57478878,1325.3,1325.0,7.69374465]
[1673456399503,27.39052707,1325.3,1325.0,7.69374465]
[1673456400334,27.39052707,1325.3,1325.0,8.81844323]
[1673456400563,25.7048561,1325.3,1325.1,1.8723363]
[1673456401070,1.12578065,1325.3,1325.1,1.8723363]
[1673456401287,22.32264073,1325.4,1325.1,9.4156474]
[1673456401618,37.34944073,1325.4,1325.1,0.09754465]
[1673456401921,37.34944073,1325.4,1325.1,1.12469858]
[1673456402083,22.25864073,1325.4,1325.1,1.12469858]
[1673456402456,22.25864073,1325.4,1325.1,8.67113858]
[1673456402608,37.34878073,1325.4,1325.1,1.22224323]
[1673456402819,37.34878073,1325.4,1325.1,1.12469858]
[1673456403387,35.66310976,1325.4,1325.1,1.12469858]
[1673456403790,37.34878073,1325.4,1325.1,1.12469858]
[1673456405343,37.35078073,1325.4,1325.1,1.12469858]
[1673456405550,7.54603,1325.2,1325.1,1.12469858]
[1673456405761,7.55003,1325.2,1325.1,2.62586979]
[1673456406076,7.54803,1325.2,1325.1,2.62586979]
[1673456406284,15.09406,1325.2,1325.0,15.01171207]
[1673456406605,7.54803,1325.2,1325.0,4.60729111]
[1673456406815,7.54803,1325.2,1325.0,4.50974646]
[1673456407063,22.64009,1325.2,1325.0,1.12469858]
[1673456407271,22.64009,1325.2,1324.9,22.90929111]
[1673456407272,27.06977881,1325.2,1324.9,22.90929111]
[1673456407503,27.06977881,1325.2,1324.9,25.71751207]
[1673456408959,28.75544978,1325.2,1324.9,24.03046419]
[1673456409172,18.71753065,1325.1,1324.9,21.22224323]
[1673456409360,16.21953065,1325.1,1324.9,24.03046419]
[1673456409575,22.64277,1325.1,1324.9,24.03046419]
[1673456409784,22.64277,1325.1,1324.9,21.22224323]
[1673456410973,22.64277,1325.1,1324.9,20.09754465]
[1673456410974,1.12378065,1325.0,1324.9,20.09754465]
[1673456411184,23.76526065,1325.0,1324.9,0.09754465]
[1673456411344,25.45293162,1325.0,1324.7,20.09755441]
[1673456411553,30.58330282,1325.0,1324.7,20.09755441]
[1673456412639,32.29730282,1325.0,1324.7,20.09755441]
[1673456412828,0.5662,1324.9,1324.7,20.09755441]
[1673456413041,22.6449,1324.8,1324.7,20.09755441]
[1673456413266,20.64918225,1324.8,1324.7,20.09755441]
[1673456416543,23.47528148,1324.8,1324.7,20.09755441]
[1673456416798,20.65118225,1324.8,1324.7,20.09455441]
[1673456416964,20.65118225,1324.8,1324.7,20.09755441]
[1673456416965,20.64918225,1324.8,1324.7,20.09755441]
[1673456418643,21.21538225,1324.8,1324.7,0.09755441]
[1673456418848,21.21538225,1324.8,1324.7,9.76e-06]
[1673456419118,24.38087954,1324.8,1324.7,9.76e-06]
[1673456420749,23.81467954,1324.8,1324.7,9.76e-06]
[1673456421427,0.002,1324.8,1324.7,9.76e-06]
[1673456421590,0.6302,1324.9,1324.7,9.76e-06]
[1673456421591,19.6937,1325.0,1324.7,7.54887976]
[1673456421950,15.09606,1324.9,1324.7,0.09755441]
[1673456422160,15.09806,1324.9,1324.7,9.76e-06]
[1673456422956,7.54981,1324.9,1324.8,0.21982939]
[1673456423168,0.002,1324.9,1324.8,0.21982939]
[1673456423368,11.8894,1325.0,1324.8,0.21982939]
[1673456423580,26.98414,1325.0,1324.8,0.00114059]
[1673456424174,34.5316,1325.0,1324.8,0.00114059]
[1673456425743,17.59546,1324.9,1324.8,0.00114059]
[1673456426051,25.14519,1324.9,1324.8,0.00114059]
[1673456426579,24.0215216,1324.9,1324.8,0.00114059]
[1673456427153,16.4737916,1324.9,1324.8,0.00114059]
[1673456427590,8.9260616,1324.9,1324.8,0.00114059]
[1673456427804,0.002,1324.9,1324.8,0.00114059]
[1673456428021,34.53178,1325.0,1324.8,0.00114059]
[1673456428572,33.96568,1325.0,1324.8,0.00114059]
[1673456428787,11.3233,1325.0,1324.8,0.00114059]
[1673456428945,26.41772,1325.0,1324.8,0.00114059]
[1673456430304,26.41972,1325.0,1324.8,0.00114059]
[1673456430514,26.41772,1325.0,1324.8,0.00114059]
[1673456431510,11.3233,1325.0,1324.8,7.54909059]
[1673456431755,11.3233,1325.0,1324.8,9.16615274]
[1673456432342,11.3233,1325.0,1324.8,16.71445274]
[1673456433679,11.3233,1325.0,1324.8,36.71445274]
[1673456434026,9.32591883,1325.0,1324.8,36.71445274]
[1673456434560,9.32591883,1325.0,1324.8,47.07153075]
[1673456434779,9.32591883,1325.0,1324.8,44.26275274]
[1673456436013,9.32591883,1325.0,1324.8,29.16615274]
[1673456436344,9.32591883,1325.0,1324.8,31.97496465]
[1673456437273,9.32591883,1325.0,1324.8,39.52326465]
[1673456438549,9.32591883,1325.0,1324.8,47.07156465]
[1673456438762,9.32591883,1325.0,1324.8,44.26275274]
[1673456438938,9.32591883,1325.0,1324.8,45.38745132]
[1673456439662,9.32591883,1325.0,1324.8,44.26275274]
[1673456440566,9.32591883,1325.0,1324.8,36.71445274]
[1673456440747,9.32591883,1325.0,1324.8,39.52320536]
[1673456441161,9.32791883,1325.0,1324.8,39.52020536]
[1673456441502,9.32591883,1325.0,1324.8,39.52320536]
[1673456441662,9.32591883,1325.0,1324.9,1.87245856]
[1673456441867,9.32591883,1325.0,1324.9,9.42018856]
[1673456442085,9.32591883,1325.0,1324.9,17.06546321]
[1673456442328,9.32591883,1325.0,1324.9,13.11199162]
[1673456442494,0.002,1325.0,1324.9,10.30336733]
[1673456442702,8.8416,1325.1,1324.9,10.30336733]
[1673456442950,8.8416,1325.1,1324.9,11.23953443]
[1673456443169,0.5681,1325.1,1324.9,11.23953443]
[1673456443383,0.5661,1325.1,1324.9,11.23953443]
[1673456443602,0.5661,1325.1,1324.9,0.88317877]
[1673456443760,8.11273,1325.1,1324.9,0.78563412]
[1673456443971,8.11473,1325.1,1324.9,0.78563412]
[1673456444171,8.11473,1325.1,1324.9,5.46672044]
[1673456444386,0.5681,1325.1,1324.9,0.88317877]
[1673456444647,0.5661,1325.1,1324.9,5.46674651]
[1673456444811,0.5661,1325.1,1324.9,0.88317877]
[1673456445016,74.19192,1325.2,1324.9,5.46673756]
[1673456445283,43.42792,1325.2,1324.9,3.69184113]
[1673456445456,44.55170065,1325.2,1324.9,3.59429648]
[1673456446505,44.55170065,1325.2,1324.9,0.78563412]
[1673456446714,44.55170065,1325.2,1324.8,43.86741382]
[1673456446931,44.55170065,1325.2,1324.9,1.87248222]
[1673456447387,29.45899065,1325.2,1324.9,12.22881026]
[1673456447594,28.89289065,1325.2,1324.9,15.19295465]
[1673456447766,28.89289065,1325.2,1324.9,18.00160269]
[1673456448281,36.43892065,1325.2,1324.9,10.45387269]
[1673456448493,36.43892065,1325.2,1324.9,2.90619269]
[1673456448709,36.43892065,1325.2,1324.9,2.80864804]
[1673456448917,36.43892065,1325.2,1324.9,4.68107115]
[1673456449129,35.31514,1325.2,1324.9,4.68107115]
[1673456449662,36.43892065,1325.2,1324.9,4.68107115]
[1673456449863,43.98495065,1325.2,1324.9,4.68107115]
[1673456450862,36.43874065,1325.2,1324.9,4.68107115]
[1673456451017,43.98477065,1325.2,1324.9,4.68107115]
[1673456451227,36.43874065,1325.2,1324.9,4.68107115]
[1673456451481,43.98477065,1325.2,1324.9,4.68107115]
[1673456451855,36.43874065,1325.2,1324.9,4.68107115]
[1673456452399,8.3808,1325.2,1324.9,32.48491179]
[1673456452608,8.3808,1325.2,1324.9,30.64003333]
[1673456453548,0.002,1325.2,1325.0,1.87234594]
[1673456453789,12.2958,1325.3,1325.1,15.0932]
[1673456454001,11.7298,1325.3,1325.1,15.12074465]
[1673456456812,11.7298,1325.3,1325.1,7.57414465]
[1673456459017,11.7298,1325.3,1325.1,15.12074465]
[1673456459379,9.43038065,1325.4,1325.3,9.54035421]
[1673456459380,0.064,1325.4,1325.3,9.54035421]
[1673456459587,0.06511137,1325.5,1325.3,13.3655595]
[1673456459738,0.06511137,1325.5,1325.3,20.9110195]
[1673456461476,0.06511137,1325.5,1325.3,28.4564795]
[1673456461838,0.06511137,1325.5,1325.3,34.37104956]
[1673456462090,0.06511137,1325.5,1325.3,32.62924814]
[1673456462721,0.06511137,1325.5,1325.3,29.8214795]
[1673456462935,0.06511137,1325.5,1325.4,3.79766064]
[1673456463144,0.06511137,1325.5,1325.4,32.89403012]
[1673456463391,0.06511137,1325.5,1325.4,31.04987529]
[1673456463982,0.06511137,1325.5,1325.4,33.08987529]
[1673456466324,0.06511137,1325.5,1325.4,39.5110931]
[1673456466517,0.0574028,1325.7,1325.5,2.5]
[1673456466730,0.0574028,1325.7,1325.6,7.54375]
[1673456466924,0.0574028,1325.7,1325.6,15.11504465]
[1673456467144,0.0574028,1325.7,1325.6,35.11504465]
[1673456467376,0.0574028,1325.7,1325.6,34.84504465]
[1673456467660,0.0574028,1325.7,1325.6,36.54704465]
[1673456467873,0.0574028,1325.7,1325.6,47.88845529]
[1673456469285,0.0574028,1325.7,1325.6,48.11845529]
[1673456469731,0.0574028,1325.7,1325.6,25.75720529]
[1673456469908,0.0574028,1325.7,1325.6,48.38845529]
[1673456470775,0.0574028,1325.7,1325.6,50.09945529]
[1673456474473,0.0574028,1325.7,1325.6,48.39745529]
[1673456474782,0.0574028,1325.7,1325.6,54.65802535]
[1673456475144,0.0574028,1325.7,1325.6,71.65802535]
[1673456475932,0.0574028,1325.7,1325.6,67.10845529]
[1673456476104,0.0574028,1325.7,1325.6,71.65802535]
[1673456478367,0.0574028,1325.7,1325.6,67.10845529]
[1673456479244,1e-08,1325.7,1325.6,67.10845529]
[1673456481561,1e-08,1325.7,1325.6,71.65802535]
[1673456482534,1e-08,1325.7,1325.6,67.10845529]
[1673456483780,1e-08,1325.7,1325.6,65.39745529]
[1673456484730,1e-08,1325.7,1325.6,69.94702535]
[1673456486255,7.78e-06,1325.8,1325.6,71.64202535]
[1673456486420,7.78e-06,1325.8,1325.7,35.6877707]
[1673456486621,7.78e-06,1325.8,1325.7,37.42531535]
[1673456486830,7.78e-06,1325.8,1325.7,38.40681675]
[1673456488551,7.78e-06,1325.8,1325.7,37.65531535]
[1673456489393,7.78e-06,1325.8,1325.7,39.52645474]
[1673456489570,7.78e-06,1325.8,1325.7,37.65531535]
[1673456489922,7.78e-06,1325.8,1325.7,39.52642437]
[1673456490308,7.78e-06,1325.8,1325.7,42.33306911]
[1673456490524,7.78e-06,1325.8,1325.7,39.52642437]
[1673456491245,7.78e-06,1325.8,1325.7,42.33309868]
[1673456491802,0.05654072,1325.9,1325.7,42.33309868]
[1673456491803,0.0005485,1325.9,1325.8,0.002]
[1673456492016,0.0005485,1325.9,1325.8,48.5500617]
[1673456492198,0.0005485,1325.9,1325.8,51.80760635]
[1673456492405,0.0005485,1325.9,1325.8,51.80760788]
[1673456492761,0.0005485,1325.9,1325.8,49.93660535]
[1673456493344,0.0005485,1325.9,1325.8,54.61415807]
[1673456493587,0.0005485,1325.9,1325.8,51.80762644]
[1673456493797,0.0005485,1325.9,1325.8,54.61410687]
[1673456494080,0.0005485,1325.9,1325.8,54.61210687]
[1673456494421,0.0005485,1325.9,1325.8,56.31310687]
[1673456494641,0.0005485,1325.9,1325.8,53.50662644]
[1673456495023,0.0005485,1325.9,1325.8,56.31314321]
[1673456497378,0.0005485,1325.9,1325.8,57.43784179]
[1673456498251,0.0005485,1325.9,1325.8,56.31314321]
[1673456499408,30.76084697,1326.1,1325.8,56.31314321]
[1673456499409,28.824498,1326.1,1325.9,2.5]
[1673456499575,0.002,1326.1,1326.0,33.96354064]
[1673456499785,0.07114654,1326.2,1326.0,36.99108529]
[1673456500037,0.07114654,1326.2,1326.1,3.79766064]
[1673456500351,0.07114654,1326.2,1326.1,26.65036064]
[1673456500517,0.07114654,1326.2,1326.1,26.67790529]
[1673456501580,0.63674654,1326.2,1326.1,26.67790529]
[1673456501792,0.07114654,1326.2,1326.1,26.67790529]
[1673456504738,0.5656,1326.3,1326.1,26.67790529]
[1673456504927,0.5656,1326.3,1326.2,3.79766064]
[1673456505141,0.5656,1326.3,1326.2,26.41868064]
[1673456505404,0.5656,1326.3,1326.2,26.44622529]
[1673456505768,0.5656,1326.3,1326.2,26.67622529]
[1673456507189,20.98534654,1326.4,1326.2,26.67622529]
[1673456507403,20.92134654,1326.4,1326.3,3.79766064]
[1673456507571,20.92134654,1326.4,1326.3,26.41697064]
[1673456507572,0.63864654,1326.4,1326.3,26.41697064]
[1673456507918,0.63664654,1326.4,1326.3,26.44451529]
[1673456508293,0.63664654,1326.4,1326.3,46.44451529]
[1673456508503,0.63664654,1326.4,1326.3,46.67451529]
[1673456512330,1.76042719,1326.4,1326.3,46.67451529]
[1673456512540,0.63664654,1326.4,1326.3,46.67451529]
[1673456513192,0.07114654,1326.4,1326.3,46.67451529]
[1673456513340,1.19492719,1326.4,1326.3,46.67451529]
[1673456513545,0.07114654,1326.4,1326.3,46.67451529]
[1673456513983,1.19492719,1326.4,1326.3,46.67451529]
[1673456514632,0.07114654,1326.4,1326.3,46.67451529]
[1673456515479,1.19492719,1326.4,1326.3,46.67451529]
[1673456515888,0.07114654,1326.4,1326.3,46.67451529]
[1673456517331,0.07114654,1326.4,1326.3,46.67151529]
[1673456517541,0.07114654,1326.4,1326.3,46.67451529]
[1673456525033,1e-08,1326.4,1326.3,46.67451529]
[1673456526836,1e-08,1326.4,1326.3,51.18479127]
[1673456528099,1e-08,1326.4,1326.3,46.67451529]
[1673456529354,1e-08,1326.4,1326.3,48.54500396]
[1673456531518,1e-08,1326.4,1326.3,48.54200396]